bitfinex-derivatives/quotes_ETHF0:USTF0_20250831
["timestamp","ask_amount","ask_price","bid_price","bid_amount"]
[1756667019942,0.2924,4489.5,4487.9,4.44682]
[1756667019943,0.2028,4488.6,4488.5,0.1606]
[1756667020245,0.4952,4488.6,4488.5,0.5948]
[1756667020950,0.2924,4488.6,4488.5,0.5948]
[1756667023854,0.2924,4489.5,4488.6,0.1606]
[1756667024046,0.51516,4489.5,4488.8,0.1606]
[1756667024247,0.4952,4488.9,4488.8,0.3708]
[1756667027247,0.2028,4488.9,4488.4,3.2078]
[1756667027453,0.2028,4488.6,4488.5,0.5948]
[1756667027753,0.4952,4488.6,4488.5,0.5948]
[1756667031944,3.2078,4490.1,4488.6,0.1606]
[1756667031945,0.2924,4490.0,4488.6,0.1606]
[1756667032256,0.2028,4489.7,4489.6,3.418]
[1756667032454,0.4952,4489.7,4489.6,3.642]
[1756667032750,0.4952,4489.7,4489.6,3.8026]
[1756667041153,0.4952,4490.6,4490.5,0.3708]
[1756667041358,0.4952,4490.6,4490.5,0.5948]
[1756667041959,0.4952,4490.6,4490.5,0.224]
[1756667042658,0.4952,4490.6,4490.5,0.3846]
[1756667042862,0.4952,4490.6,4490.5,0.5948]
[1756667043658,0.4952,4490.6,4490.5,0.4342]
[1756667043861,0.4952,4490.6,4490.5,0.224]
[1756667044258,0.4952,4490.6,4490.5,0.5948]
[1756667047667,0.4952,4490.6,4490.5,0.3708]
[1756667047965,0.4952,4490.6,4490.5,0.5948]
[1756667049166,0.2038,4490.7,4490.6,0.3587]
[1756667049463,0.4917,4490.7,4490.6,3.5665]
[1756667055868,0.4917,4490.7,4490.6,0.3587]
[1756667056074,0.4917,4490.7,4490.6,3.5665]
[1756667056468,0.4917,4490.7,4490.6,0.224]
[1756667056966,0.4917,4490.7,4490.6,0.5827]
[1756667057572,0.4917,4490.7,4490.6,3.7905]
[1756667059273,0.2879,4490.7,4490.6,3.7905]
[1756667059870,0.4917,4490.7,4490.6,3.7905]
[1756667061777,3.2078,4491.2,4490.6,3.7905]
[1756667061981,0.4917,4491.2,4491.1,0.209]
[1756667062177,0.4917,4491.2,4490.9,0.224]
[1756667062567,0.4917,4491.2,4490.9,0.3737]
[1756667062773,0.2038,4491.0,4490.9,0.3737]
[1756667062966,0.4917,4491.0,4490.9,0.3737]
[1756667067272,3.2078,4491.7,4491.0,0.3525]
[1756667067273,0.2038,4491.1,4491.0,0.3525]
[1756667067480,0.2879,4491.1,4491.0,0.3525]
[1756667067780,0.4917,4491.1,4491.0,0.3525]
[1756667069481,1.05758424,4491.1,4491.0,0.3525]
[1756667071778,0.2879,4491.0,4490.7,0.1435]
[1756667071987,0.4917,4490.7,4490.6,3.2078]
[1756667072280,0.4917,4490.7,4490.6,3.4318]
[1756667073381,0.4917,4490.7,4490.6,3.2078]
[1756667073574,0.4917,4490.7,4490.6,3.5753]
[1756667073778,0.4917,4490.7,4490.6,3.3513]
[1756667073981,0.4917,4490.7,4490.6,3.4318]
[1756667074377,0.4917,4490.7,4490.6,3.2078]
[1756667074581,0.4917,4490.7,4490.6,3.4318]
[1756667075885,0.4917,4490.7,4490.6,3.5753]
[1756667076277,0.4917,4490.7,4490.6,3.7843]
[1756667077280,3.2078,4491.7,4490.6,3.7843]
[1756667077582,0.2879,4491.5,4490.7,0.1435]
[1756667077778,1.05768879,4491.4,4491.3,0.3525]
[1756667078884,1.05768879,4491.4,4491.3,0.209]
[1756667081687,1.05768879,4491.4,4491.3,0.3479]
[1756667081888,3.2078,4491.7,4491.3,0.3479]
[1756667081889,0.2783,4491.7,4491.3,3.5557]
[1756667082082,0.56682476,4491.6,4491.5,0.1899]
[1756667082277,0.84512476,4491.6,4491.5,0.5528]
[1756667082481,0.2783,4491.6,4491.5,0.5528]
[1756667082990,0.4784,4491.6,4491.5,0.5528]
[1756667084290,0.4784,4491.6,4491.5,0.4139]
[1756667084683,0.4784,4491.6,4491.5,0.224]
[1756667085679,0.2001,4491.6,4491.3,3.2078]
[1756667085884,0.4784,4491.4,4490.9,0.224]
[1756667086086,0.4784,4491.4,4491.0,0.1389]
[1756667086288,0.4784,4491.4,4490.9,0.224]
[1756667086488,0.4784,4491.4,4491.3,0.1899]
[1756667086690,0.4784,4491.4,4491.3,0.3288]
[1756667087390,0.4784,4491.4,4491.3,0.1899]
[1756667087793,0.4784,4491.4,4490.9,0.224]
[1756667088395,0.2001,4491.4,4490.9,0.3629]
[1756667088589,0.2001,4491.0,4490.9,0.5528]
[1756667088796,0.4784,4491.0,4490.9,0.5528]
[1756667093193,0.4784,4491.0,4490.9,0.4139]
[1756667093495,0.4784,4491.0,4490.9,0.224]
[1756667094095,0.4784,4491.0,4490.9,0.3629]
[1756667094894,0.4784,4491.0,4490.9,0.1389]
[1756667095095,0.4784,4491.0,4490.9,0.3629]
[1756667098701,0.4784,4491.0,4490.9,0.5528]
[1756667101496,0.4784,4491.0,4490.6,0.1389]
[1756667101702,0.4784,4490.9,4490.8,0.3288]
[1756667101894,0.4784,4490.9,4490.8,0.5528]
[1756667103101,0.4784,4490.9,4490.8,0.3288]
[1756667103302,0.4784,4490.9,4490.8,0.5528]
[1756667103802,0.4784,4490.9,4490.8,0.3288]
[1756667104192,0.4784,4490.9,4490.8,0.5528]
[1756667105901,0.4784,4490.9,4490.8,0.3288]
[1756667106108,0.2001,4490.7,4490.6,0.224]
[1756667106408,0.4784,4490.7,4490.6,0.224]
[1756667109210,0.4789,4490.6,4490.5,0.224]
[1756667110209,0.4789,4490.4,4489.9,0.1298]
[1756667110404,0.2,4490.4,4490.0,0.224]
[1756667110606,0.2,4490.2,4490.1,0.335]
[1756667110808,0.4789,4490.2,4490.1,0.335]
[1756667114209,0.4789,4490.2,4490.0,0.224]
[1756667114908,0.4789,4490.2,4490.1,0.3538]
[1756667115116,0.4789,4490.2,4490.1,0.559]
[1756667116111,0.2789,4490.2,4490.1,0.559]
[1756667118713,0.4789,4490.2,4490.1,0.559]
[1756667120915,0.4789,4490.2,4490.1,0.335]
[1756667121115,0.4789,4489.9,4489.8,3.2078]
[1756667121307,1.60192674,4492.1,4488.5,2.79110931]
[1756667121308,0.4789,4489.4,4488.6,2.11504953]
[1756667121617,3.2078,4490.0,4488.5,3.2078]
[1756667121618,0.2789,4488.7,4488.5,3.2078]
[1756667121821,0.4789,4488.4,4488.3,0.335]
[1756667122009,0.4789,4488.4,4488.3,0.559]
[1756667122614,3.2078,4489.5,4488.3,0.559]
[1756667122818,0.4789,4488.8,4488.7,3.5428]
[1756667123012,0.4789,4488.8,4488.3,0.3538]
[1756667123216,3.2078,4489.5,4488.3,0.224]
[1756667123414,0.4789,4488.4,4488.3,0.224]
[1756667124917,0.4789,4488.4,4488.3,0.559]
[1756667129325,0.2789,4488.4,4488.3,0.559]
[1756667129929,0.4789,4488.4,4488.3,0.559]
[1756667130325,0.4789,4488.4,4488.3,0.224]
[1756667131629,0.4789,4488.4,4488.3,0.3539]
[1756667132226,0.2789,4488.3,4488.2,3.2078]
[1756667132432,0.4789,4488.3,4488.2,3.4318]
[1756667134629,0.4789,4488.3,4488.2,3.2078]
[1756667134832,0.4789,4488.3,4488.2,3.4318]
[1756667135631,0.4789,4488.3,4488.2,3.3377]
[1756667135835,0.4789,4488.3,4488.2,3.5617]
[1756667136427,0.4789,4488.3,4488.2,3.4318]
[1756667137736,0.4789,4488.3,4488.2,3.7669]
[1756667137930,0.4789,4488.3,4488.2,3.2078]
[1756667138131,0.4789,4488.3,4487.9,32.075]
[1756667138429,0.2862,4488.2,4488.0,0.224]
[1756667138630,0.4786,4488.1,4488.0,0.224]
[1756667138835,0.4786,4488.1,4488.0,0.546]
[1756667141832,0.4786,4488.1,4488.0,0.224]
[1756667142029,0.1924,4488.1,4487.6,0.1306]
[1756667142230,0.1924,4488.1,4487.1,3.2078]
[1756667142231,0.4786,4488.0,4487.9,0.224]
[1756667142728,0.4786,4488.0,4487.4,0.1306]
[1756667142930,0.4786,4488.0,4487.5,0.3546]
[1756667143333,0.4786,4488.0,4487.6,0.224]
[1756667143636,0.4786,4488.0,4487.5,0.1306]
[1756667143637,0.4786,4488.0,4487.7,0.224]
[1756667144033,0.4786,4488.0,4487.5,0.1306]
[1756667144230,0.4786,4488.0,4487.6,0.224]
[1756667144430,0.4786,4488.0,4487.6,0.3546]
[1756667145337,0.4786,4488.0,4487.1,3.2078]
[1756667145537,0.1924,4487.3,4487.2,0.546]
[1756667145836,0.4786,4487.3,4487.2,0.546]
[1756667147428,0.4786,4487.3,4487.2,0.4154]
[1756667147625,0.4786,4487.2,4487.1,3.2078]
[1756667147825,0.4786,4487.2,4487.1,3.4318]
[1756667148127,0.4786,4487.2,4487.1,3.7538]
[1756667152338,0.2862,4487.9,4487.2,0.1306]
[1756667152638,0.2862,4487.9,4487.1,3.6232]
[1756667152639,0.4786,4487.9,4487.8,0.322]
[1756667152842,1.04211231,4487.9,4487.8,0.322]
[1756667153239,0.4786,4487.9,4487.8,0.322]
[1756667157142,0.4786,4487.9,4487.5,0.224]
[1756667157443,0.4786,4487.9,4487.6,0.1306]
[1756667157645,0.4786,4487.9,4487.5,0.224]
[1756667158439,0.4786,4487.9,4487.6,0.1306]
[1756667159243,3.4318,4488.5,4486.7,0.224]
[1756667159244,0.4786,4486.8,4486.7,0.224]
[1756667160041,0.4786,4486.7,4486.6,3.2078]
[1756667160443,0.1924,4486.3,4486.2,0.322]
[1756667160646,0.4786,4486.3,4486.2,0.322]
[1756667161049,0.4786,4486.3,4486.2,0.1914]
[1756667161645,0.4786,4486.2,4486.1,3.4318]
[1756667161846,0.4786,4486.2,4486.1,3.2078]
[1756667162654,0.4786,4486.2,4486.0,0.224]
[1756667162851,0.1924,4486.2,4485.9,0.224]
[1756667163052,0.1924,4486.0,4485.9,0.4154]
[1756667163252,0.4786,4486.0,4485.9,0.546]
[1756667163455,0.4786,4486.0,4485.9,0.322]
[1756667163660,0.4786,4486.0,4485.9,0.4154]
[1756667163950,0.2862,4485.9,4485.7,0.224]
[1756667164146,0.4786,4485.7,4485.6,3.2078]
[1756667164652,0.4786,4485.7,4485.6,3.3384]
[1756667164854,0.4786,4485.7,4485.6,3.5298]
[1756667171155,0.4786,4485.7,4485.6,3.2078]
[1756667171767,0.4767,4485.2,4485.1,3.7531]
[1756667176752,3.2078,4486.0,4485.1,3.7531]
[1756667176958,0.2883,4485.9,4485.8,0.3213]
[1756667177158,3.2078,4486.0,4485.8,0.1911]
[1756667177461,0.2883,4486.0,4485.9,0.3213]
[1756667178964,0.4767,4486.0,4485.9,0.3213]
[1756667179163,0.4767,4486.0,4485.9,0.1302]
[1756667181059,0.4767,4486.0,4485.9,0.3213]
[1756667181366,3.2078,4486.6,4485.9,0.3213]
[1756667181666,3.2078,4486.6,4485.6,3.4318]
[1756667181667,0.4767,4486.5,4486.4,0.3213]
[1756667183765,0.1884,4485.8,4485.7,0.3213]
[1756667183964,0.4767,4485.8,4485.7,0.3213]
[1756667188668,0.4767,4485.2,4485.1,3.2078]
[1756667191775,0.4767,4485.2,4485.1,3.3379]
[1756667192274,0.4767,4485.2,4485.1,3.529]
[1756667192763,0.2883,4485.2,4485.1,3.529]
[1756667192969,3.4318,4486.1,4485.2,0.1301]
[1756667193283,0.2883,4485.9,4485.2,0.1301]
[1756667193474,0.4767,4485.3,4485.2,0.3212]
[1756667193669,0.4767,4485.3,4485.2,0.5452]
[1756667196276,0.4767,4485.2,4485.1,3.529]
[1756667202478,0.4767,4485.2,4485.1,3.753]
[1756667202681,0.2912,4486.0,4485.1,3.6229]
[1756667202986,0.4788,4485.3,4485.2,0.3233]
[1756667203375,0.2912,4485.2,4485.1,3.4318]
[1756667203574,0.4788,4485.2,4485.1,3.4318]
[1756667203976,0.4788,4485.2,4485.1,3.6252]
[1756667204183,0.4788,4485.2,4485.1,3.7551]
[1756667208297,0.2912,4486.0,4485.2,0.1299]
[1756667208485,0.56459817,4485.9,4485.2,0.1299]
[1756667208681,1.07873817,4485.8,4485.2,0.1299]
[1756667208984,1.04339817,4485.7,4485.6,0.1934]
[1756667209283,1.04339817,4485.7,4485.6,0.3233]
[1756667210985,0.85579817,4485.7,4485.6,0.3233]
[1756667211382,0.2912,4486.0,4485.6,0.1934]
[1756667211577,0.56476992,4485.9,4485.8,0.3233]
[1756667211786,0.85596992,4485.9,4485.8,0.3233]
[1756667213681,1.04356992,4485.9,4485.8,0.3233]
[1756667213877,1.04356992,4485.9,4485.8,0.1299]
[1756667214086,1.04356992,4485.9,4485.6,0.3539]
[1756667214281,0.4788,4485.9,4485.6,0.224]
[1756667214482,0.4788,4485.9,4485.8,0.3233]
[1756667214678,0.4788,4485.9,4485.8,0.1934]
[1756667214886,1.04372515,4485.9,4485.6,0.3539]
[1756667215186,0.4788,4485.9,4485.6,0.3539]
[1756667215388,0.4788,4485.7,4485.6,0.3539]
[1756667216693,0.4788,4485.3,4485.2,0.3233]
[1756667216988,0.4788,4485.3,4485.2,0.5473]
[1756667218792,0.4788,4486.0,4485.9,0.1934]
[1756667218993,1.04404776,4486.0,4485.9,0.3233]
[1756667219289,1.04404776,4486.0,4485.3,0.1299]
[1756667219481,0.56524776,4485.9,4485.3,0.1299]
[1756667219684,0.4788,4485.7,4485.6,0.1934]
[1756667219881,0.4788,4485.7,4485.6,0.3233]
[1756667223191,0.4788,4485.7,4485.2,0.224]
[1756667223385,0.1876,4485.4,4485.2,0.224]
[1756667223587,0.4788,4485.3,4485.2,0.224]
[1756667224297,0.1876,4485.3,4485.1,3.2078]
[1756667224596,0.4788,4485.2,4485.1,3.5321]
[1756667225791,0.4788,4485.2,4485.1,3.2078]
[1756667226390,0.4788,4485.2,4485.1,3.5321]
[1756667232701,0.4788,4485.2,4485.1,3.7561]
[1756667233403,0.4788,4485.2,4485.1,3.5321]
[1756667240620,0.2912,4485.2,4485.1,3.5321]
[1756667240816,0.4835,4486.0,4485.9,0.321]
[1756667241019,0.85207121,4486.0,4485.9,0.321]
[1756667242420,1.05107121,4486.0,4485.9,0.321]
[1756667244223,0.4835,4486.0,4485.9,0.321]
[1756667252730,0.2845,4486.0,4485.9,0.321]
[1756667253332,0.4835,4486.0,4485.9,0.321]
[1756667260140,0.2746,4485.9,4485.7,0.1297]
[1756667260338,0.4683,4485.8,4485.7,0.1297]
[1756667261040,0.4683,4485.8,4485.7,0.322]
[1756667262738,0.4683,4485.8,4485.6,3.4318]
[1756667262933,0.4683,4485.7,4485.6,3.4318]
[1756667263136,0.4683,4485.7,4485.6,3.7538]
[1756667264546,0.2746,4485.7,4485.6,3.7538]
[1756667265742,3.2078,4486.6,4485.6,3.7538]
[1756667266039,0.2746,4486.4,4485.7,0.1297]
[1756667266239,0.4683,4486.2,4486.1,0.1923]
[1756667266440,1.03627922,4486.2,4486.1,0.322]
[1756667267239,0.2746,4487.0,4486.4,0.1923]
[1756667267443,0.1937,4486.6,4486.5,0.1923]
[1756667267743,1.03641351,4486.6,4486.5,0.322]
[1756667267938,1.03641351,4486.6,4486.3,0.1297]
[1756667268138,0.4683,4486.4,4486.3,0.1297]
[1756667268538,0.4683,4486.4,4486.3,0.322]
[1756667273549,0.1937,4486.2,4485.6,3.2078]
[1756667273752,0.4683,4485.7,4485.6,3.2078]
[1756667274150,0.4683,4485.7,4485.6,3.3375]
[1756667274350,0.4683,4485.7,4485.6,3.5298]
[1756667276444,0.4683,4485.7,4485.6,3.2078]
[1756667277554,0.4683,4485.7,4485.6,3.3375]
[1756667279054,0.4683,4485.7,4485.6,3.5298]
[1756667281045,0.4683,4485.7,4485.6,3.2078]
[1756667283757,0.41663,4485.7,4485.1,3.2078]
[1756667283955,0.4683,4484.7,4484.6,0.4745]
[1756667284455,0.4683,4484.7,4484.3,0.2822]
[1756667284658,0.4683,4484.4,4484.3,0.4745]
[1756667286054,5.04393832,4484.4,4484.0,3.2078]
[1756667286260,4.4683,4484.4,4484.0,3.2078]
[1756667286458,0.4683,4484.2,4484.1,0.38478354]
[1756667286859,0.4683,4484.2,4484.1,0.10258354]
[1756667287258,0.1937,4483.6,4483.5,0.6985]
[1756667287456,0.4683,4483.6,4483.5,0.4745]
[1756667287662,0.4683,4483.6,4482.2,32.11]
[1756667287663,0.4683,4483.6,4483.0,0.2822]
[1756667288457,0.2825,4483.1,4482.2,0.075]
[1756667288652,0.2825,4483.1,4482.3,0.2951]
[1756667290161,0.2825,4482.3,4481.4,3.2078]
[1756667290364,0.4667,4481.6,4481.5,0.2951]
[1756667290566,0.2825,4481.5,4481.4,0.4877]
[1756667290865,0.4667,4481.5,4481.4,0.4877]
[1756667293862,0.4667,4481.5,4481.4,0.1926]
[1756667294262,0.4667,4481.5,4481.4,0.4877]
[1756667295869,0.2825,4481.4,4480.7,0.2951]
[1756667296269,0.4667,4480.8,4480.2,0.2951]
[1756667296474,0.4667,4480.0,4479.9,3.6955]
[1756667297173,0.4667,4480.0,4479.9,0.4877]
[1756667301773,3.2078,4480.6,4480.0,0.2951]
[1756667301974,3.392,4480.6,4479.5,0.2951]
[1756667302272,0.2825,4480.5,4479.5,0.2951]
[1756667302671,0.4667,4480.5,4480.4,0.4877]
[1756667303382,0.4667,4480.5,4480.1,0.2951]
[1756667303675,0.2825,4480.4,4479.5,0.2951]
[1756667304272,0.4667,4480.4,4480.3,0.1926]
[1756667304578,0.4667,4480.4,4480.3,0.4877]
[1756667309482,1.03813665,4480.4,4480.3,0.4877]
[1756667309884,1.03813791,4480.4,4480.3,0.4877]
[1756667311473,1.26313791,4480.4,4480.3,0.4877]
[1756667312384,1.03813791,4480.4,4480.3,0.4877]
[1756667312589,1.26313791,4480.4,4480.3,0.4877]
[1756667314279,1.03813791,4480.4,4480.3,0.4877]
[1756667314483,1.26313791,4480.4,4480.3,0.4877]
[1756667315083,0.57143791,4480.4,4480.3,0.4877]
[1756667315480,1.03813791,4480.4,4480.3,0.4877]
[1756667316486,1.03813791,4480.4,4480.3,0.1926]
[1756667316685,0.75563791,4480.4,4480.0,0.2951]
[1756667316886,0.2825,4480.2,4479.9,3.4004]
[1756667317091,0.57143791,4480.1,4479.9,0.1926]
[1756667317293,0.57143791,4480.0,4479.9,0.1926]
[1756667317488,0.225,4480.4,4480.3,0.1926]
[1756667317689,0.57414005,4480.4,4480.3,0.4877]
[1756667318089,1.06344005,4480.4,4480.3,0.4877]
[1756667318591,2.2648851,4480.4,4480.3,0.4877]
[1756667318886,0.57414005,4480.4,4480.3,0.4877]
[1756667319592,0.1115,4480.6,4480.3,4.1926]
[1756667319784,0.1115,4480.6,4480.5,3.2078]
[1756667322192,0.1115,4480.6,4480.5,7.43099]
[1756667322696,0.1115,4480.6,4480.5,7.2078]
[1756667322999,0.1115,4480.6,4480.5,7.43099]
[1756667323794,0.1115,4480.6,4480.5,7.2078]
[1756667324899,0.1115,4480.6,4480.5,12.8048]
[1756667325596,0.1115,4480.6,4480.5,12.5788]
[1756667325795,0.1115,4480.6,4480.5,12.8048]
[1756667327095,0.2011,4481.1,4480.5,3.2078]
[1756667327304,0.2011,4481.1,4478.6,1.98524953]
[1756667327305,0.4893,4480.6,4480.2,0.226]
[1756667327597,0.4893,4480.6,4480.3,0.226]
[1756667327900,0.3126,4480.6,4479.9,3.2078]
[1756667328196,0.4893,4480.1,4480.0,0.226]
[1756667328603,0.2882,4480.0,4479.9,3.2078]
[1756667328896,0.4893,4480.0,4479.9,3.4338]
[1756667330298,0.2882,4480.0,4479.9,3.4338]
[1756667330500,0.1115,4480.6,4479.9,3.4338]
[1756667330699,0.2882,4480.5,4479.9,3.2078]
[1756667330899,0.1115,4480.6,4480.0,0.226]
[1756667331105,0.1115,4480.6,4479.9,3.2078]
[1756667331304,0.2882,4480.5,4480.1,0.226]
[1756667331505,0.2011,4480.2,4480.1,0.226]
[1756667331804,1.05166377,4480.2,4480.1,0.226]
[1756667332198,0.76346377,4480.2,4479.9,3.2078]
[1756667332402,0.2882,4480.1,4480.0,0.226]
[1756667333806,0.4893,4480.1,4480.0,0.226]
[1756667335494,0.2882,4480.1,4480.0,0.226]
[1756667336102,0.4893,4480.1,4480.0,0.226]
[1756667342609,0.2882,4480.1,4480.0,0.226]
[1756667342802,0.3997,4480.3,4480.0,0.226]
[1756667344107,0.2882,4480.2,4480.0,0.226]
[1756667344903,0.3126,4480.3,4480.0,0.226]
[1756667345107,0.2011,4480.2,4480.0,0.226]
[1756667345312,0.1115,4480.3,4480.0,0.226]
[1756667345508,0.3997,4480.3,4480.0,0.226]
[1756667346722,0.1115,4480.3,4480.0,0.226]
[1756667347017,0.2882,4480.2,4480.0,0.226]
[1756667347412,0.1115,4480.3,4480.0,0.226]
[1756667348315,0.4037,4480.3,4480.0,0.226]
[1756667349621,0.2922,4480.2,4480.0,0.226]
[1756667351426,0.4902,4480.1,4480.0,0.226]
[1756667352923,0.198,4480.1,4479.8,3.2078]
[1756667353123,0.4902,4480.0,4479.9,0.225]
[1756667354124,0.4902,4480.0,4479.8,3.2078]
[1756667354326,0.4902,4479.9,4479.8,3.2078]
[1756667354527,0.4902,4479.9,4479.8,3.4328]
[1756667355528,0.4902,4479.9,4479.8,3.2078]
[1756667355718,0.4902,4479.9,4479.8,3.4328]
[1756667360438,0.4902,4479.9,4479.8,3.2078]
[1756667360638,0.4902,4479.9,4479.8,3.4328]
[1756667367432,0.4902,4479.9,4479.8,3.2078]
[1756667367740,0.4902,4479.9,4479.8,3.4328]
[1756667370444,0.4902,4479.9,4479.8,3.2078]
[1756667370646,0.4902,4479.9,4479.8,3.4328]
[1756667371044,0.4902,4479.9,4479.8,3.2078]
[1756667371247,0.4902,4479.9,4479.8,3.4328]
[1756667372534,0.4902,4479.9,4479.8,0.225]
[1756667373334,4.198,4479.9,4479.3,3.2078]
[1756667373542,0.4902,4479.4,4479.3,3.2078]
[1756667373745,0.4902,4479.4,4479.3,3.4328]
[1756667374647,0.4902,4478.9,4478.8,3.2078]
[1756667374839,0.4902,4478.9,4478.8,3.4338]
[1756667378645,0.2027,4479.3,4478.8,3.4338]
[1756667378847,0.2907,4480.0,4478.9,0.226]
[1756667379153,0.2027,4479.0,4478.9,0.226]
[1756667379340,0.4934,4479.0,4478.9,0.226]
[1756667379544,0.4934,4479.0,4478.9,0.2732]
[1756667379745,0.4934,4479.0,4478.9,0.0472]
[1756667379941,0.4934,4479.0,4478.9,0.2732]
[1756667384843,0.4934,4479.0,4478.9,0.0472]
[1756667385048,4.4934,4479.0,4478.9,0.0472]
[1756667390356,0.4934,4479.0,4478.9,0.0472]
[1756667397562,0.4934,4479.0,4478.9,0.2732]
[1756667398560,0.4934,4479.0,4478.9,0.0472]
[1756667398763,0.4934,4479.0,4478.9,0.2732]
[1756667399760,0.4934,4478.9,4478.8,3.2078]
[1756667400062,0.4934,4478.9,4478.8,3.4338]
[1756667400363,0.4934,4478.9,4478.8,3.2078]
[1756667400660,0.4934,4478.9,4478.8,3.4338]
[1756667411168,0.1115,4479.1,4478.8,7.65707]
[1756667411469,0.1115,4479.1,4479.0,1.98524953]
[1756667411666,0.1115,4479.1,4479.0,0.226]
[1756667411868,0.1115,4479.1,4479.0,0.44926]
[1756667412067,0.1115,4479.1,4479.0,0.226]
[1756667412462,0.1115,4479.1,4479.0,2.23187014]
[1756667413464,0.1115,4479.1,4479.0,0.226]
[1756667414062,0.1115,4479.1,4479.0,2.23187014]
[1756667414467,0.1115,4479.1,4479.0,0.226]
[1756667415173,0.1115,4479.1,4479.0,3.4338]
[1756667416175,0.1115,4479.1,4479.0,7.4338]
[1756667417068,0.1115,4479.1,4479.0,7.83564]
[1756667417569,0.1115,4479.1,4479.0,7.4338]
[1756667420976,0.1115,4479.1,4479.0,7.83564]
[1756667422582,3.2078,4480.9,4479.0,7.83564]
[1756667422583,0.3024,4480.0,4479.0,3.83564]
[1756667422773,0.4998,4480.0,4479.9,3.2078]
[1756667423071,0.4998,4480.0,4479.9,3.4328]
[1756667426379,4.1974,4480.0,4479.4,3.2078]
[1756667426678,0.4998,4479.5,4479.4,3.2078]
[1756667426877,0.4998,4479.5,4479.4,3.4328]
[1756667427083,4.4998,4479.5,4479.4,3.4328]
[1756667428986,4.4998,4479.5,4479.4,3.2078]
[1756667429187,4.4998,4479.5,4479.3,0.225]
[1756667429386,0.4998,4479.5,4479.3,0.225]
[1756667429986,0.4998,4478.8,4478.7,3.3132]
[1756667430187,0.4998,4478.8,4478.7,3.4906]
[1756667430787,0.4998,4478.8,4478.7,3.7851]
[1756667431086,0.4998,4478.8,4478.7,3.9702]
[1756667433887,0.3024,4478.8,4478.7,3.9702]
[1756667434085,0.3024,4479.6,4478.8,0.4796]
[1756667434293,0.4998,4478.9,4478.8,0.4796]
[1756667434488,0.4998,4478.9,4478.8,0.7046]
[1756667436289,0.3024,4478.9,4478.8,0.7046]
[1756667436490,1.19813052,4480.8,4479.5,0.4796]
[1756667436491,0.3024,4479.6,4479.5,0.4796]
[1756667436694,3.2078,4480.7,4479.5,0.4101]
[1756667436888,0.56221949,4480.6,4479.6,0.2945]
[1756667437191,0.4998,4479.8,4479.7,0.7046]
[1756667437392,0.4998,4479.8,4479.7,0.225]
[1756667437787,0.4998,4479.8,4479.7,0.5195]
[1756667437988,0.4998,4479.8,4479.7,0.7046]
[1756667438583,0.4998,4479.8,4479.7,0.4796]
[1756667438793,0.4998,4479.8,4479.7,0.4101]
[1756667440294,0.4998,4479.8,4479.7,0.6976]
[1756667441292,0.4998,4479.8,4479.7,0.4101]
[1756667441695,0.4894,4479.5,4479.4,3.6886]
[1756667441998,0.4894,4479.5,4479.4,3.9136]
[1756667445006,0.2919,4480.6,4479.4,3.6261]
[1756667445199,0.2919,4480.4,4479.5,0.2875]
[1756667445400,0.2919,4480.4,4479.6,0.225]
[1756667445599,3.2078,4480.7,4479.7,0.2875]
[1756667445600,0.4894,4479.8,4479.7,0.2875]
[1756667446005,0.4894,4479.8,4479.7,0.4808]
[1756667449500,0.4894,4479.5,4479.4,3.2078]
[1756667449906,0.4894,4479.5,4479.4,3.4328]
[1756667450701,0.4894,4479.5,4479.4,3.2078]
[1756667450906,0.4894,4479.5,4479.4,3.6261]
[1756667451107,0.4894,4479.5,4479.4,3.9136]
[1756667454010,0.4894,4479.5,4479.4,3.6886]
[1756667454210,0.4894,4479.5,4479.4,3.4328]
[1756667456007,0.4894,4479.5,4479.4,3.9136]
[1756667456417,0.4894,4479.5,4479.4,3.2078]
[1756667456710,0.4894,4479.5,4479.4,3.4328]
[1756667456906,0.1975,4479.5,4479.3,0.225]
[1756667457113,0.4894,4479.4,4479.3,0.1933]
[1756667457614,0.4894,4479.4,4479.2,0.225]
[1756667459712,0.1975,4479.4,4479.1,0.225]
[1756667459912,0.1975,4479.2,4479.1,0.7058]
[1756667460113,0.4894,4479.2,4479.1,0.7058]
[1756667464722,0.4894,4479.2,4479.1,0.755]
[1756667466129,3.2078,4480.2,4479.1,0.755]
[1756667466424,0.2919,4480.0,4479.2,0.2875]
[1756667466623,0.2919,4479.8,4479.2,0.2875]
[1756667466926,1.05597059,4479.7,4479.6,0.4808]
[1756667468320,1.05597059,4479.7,4479.1,0.2742]
[1756667468520,0.201,4479.2,4479.1,0.467]
[1756667468718,0.4954,4479.2,4479.1,0.7631]
[1756667469124,0.4954,4479.2,4479.1,0.1069]
[1756667472131,7.7032,4479.2,4478.3,3.5039]
[1756667472335,0.4954,4478.4,4478.3,3.6967]
[1756667473832,0.4954,4478.4,4478.3,3.2078]
[1756667474231,0.4954,4478.4,4478.3,0.4889]
[1756667475729,3.702,4481.4,4478.3,0.4889]
[1756667475730,0.2944,4478.9,4478.4,0.2961]
[1756667475935,3.2078,4479.2,4479.1,0.4889]
[1756667476135,3.2078,4479.2,4479.1,0.7139]
[1756667476337,3.2078,4479.7,4479.2,0.2961]